bitfinex/quotes_SOLUSD_20250228
["timestamp","ask_amount","ask_price","bid_price","bid_amount"]
[1740769264659,0.063,147.1,147.06,541.13437877]
[1740769264862,0.063,147.1,147.09,20.14216157]
[1740769265053,0.063,147.1,147.09,207.41577894]
[1740769265259,0.063,147.1,147.09,207.98909047]
[1740769265461,0.063,147.1,147.09,205.98909047]
[1740769266173,0.063,147.1,147.09,214.78759047]
[1740769266358,0.063,147.1,147.09,216.78759047]
[1740769266958,1.6033,147.21,147.09,216.78759047]
[1740769266959,0.063,147.22,147.13,2.14216157]
[1740769267166,0.063,147.22,147.14,10.6683706]
[1740769267365,0.063,147.22,147.14,16.7327706]
[1740769267569,0.063,147.22,147.14,200.5166995]
[1740769267764,0.063,147.22,147.14,511.09049047]
[1740769268170,0.063,147.22,147.14,517.88669047]
[1740769268378,0.063,147.22,147.14,511.82229047]
[1740769270082,0.063,147.22,147.14,504.8839289]
[1740769270379,1.5336,147.21,147.14,192.8839289]
[1740769270577,1.5336,147.21,147.14,185.7839289]
[1740769271079,0.063,147.15,147.14,47.8039289]
[1740769271591,0.063,147.15,147.11,47.8039289]
[1740769271885,0.063,147.15,147.09,137.98]
[1740769271886,1.592,147.14,147.09,137.98]
[1740769272682,1.592,147.14,147.07,54.9039289]
[1740769272878,1.592,147.14,147.07,199.6832289]
[1740769273079,0.063,147.15,147.08,1.56928707]
[1740769273260,0.063,147.15,147.1,20.0]
[1740769273461,0.063,147.15,147.1,205.7839289]
[1740769273691,0.063,147.15,147.14,22.0]
[1740769273891,0.063,147.22,147.15,0.14216157]
[1740769274080,0.063,147.22,147.18,26.794]
[1740769274379,0.063,147.22,147.18,212.5779289]
[1740769274580,0.063,147.22,147.2,0.14216157]
[1740769274767,0.063,147.22,147.19,1.42609857]
[1740769274768,0.063,147.22,147.21,7.1]
[1740769278187,0.063,147.22,147.19,47.8039289]
[1740769278371,0.063,147.22,147.19,54.9039289]
[1740769278890,0.063,147.22,147.19,56.33008548]
[1740769279071,0.063,147.22,147.19,194.31008548]
[1740769279274,0.063,147.22,147.19,192.8839289]
[1740769279985,0.063,147.22,147.19,511.6778289]
[1740769280193,0.063,147.22,147.19,504.8839289]
[1740769280589,0.063,147.22,147.19,511.6777289]
[1740769280988,0.063,147.22,147.2,1.42589502]
[1740769281390,0.063,147.22,147.19,192.8839289]
[1740769281691,0.063,147.22,147.19,199.6776289]
[1740769282192,0.063,147.22,147.19,192.8839289]
[1740769282380,0.063,147.22,147.19,199.6778289]
[1740769283100,0.063,147.22,147.21,20.0]
[1740769283286,0.063,147.22,147.21,67.94609047]
[1740769283793,0.063,147.22,147.21,69.37178378]
[1740769284012,0.063,147.22,147.21,381.37178378]
[1740769284290,0.063,147.22,147.21,386.73909047]
[1740769284490,0.03,147.27,147.23,0.14216157]
[1740769284797,0.03,147.27,147.24,1.42543448]
[1740769284972,0.03,147.27,147.25,7.1]
[1740769285179,0.03,147.27,147.26,1.56754474]
[1740769286293,0.03,147.27,147.26,8.21608317]
[1740769286499,0.03,147.27,147.26,6.7907]
[1740769286684,0.03,147.27,147.26,7.1]
[1740769287510,0.03,147.27,147.26,8.66753072]
[1740769287691,0.0001,147.27,147.26,320.66753072]
[1740769287882,0.0001,147.27,147.26,319.24216157]
[1740769288212,0.0001,147.27,147.26,14.03286157]
[1740769288391,0.0001,147.27,147.26,15.45810951]
[1740769289495,0.0001,147.27,147.26,14.03286157]
[1740769289883,0.0001,147.27,147.26,17.45790659]
[1740769290704,0.063,147.3,147.27,0.14216157]
[1740769291203,0.063,147.3,147.27,312.14216157]
[1740769291586,0.063,147.3,147.27,312.0]
[1740769291906,0.063,147.3,147.28,7.1]
[1740769295294,0.063,147.3,147.28,7.163]
[1740769299994,1.5635,147.29,147.28,0.063]
[1740769301892,0.063,147.3,147.28,0.063]
[1740769306027,0.14216157,147.29,147.28,0.063]
[1740769307016,6.5074,147.3,147.28,0.063]
[1740769308721,0.14216157,147.29,147.28,0.063]
[1740769308892,6.5074,147.3,147.28,0.063]
[1740769309310,0.14216157,147.29,147.28,0.063]
[1740769309598,0.14216157,147.26,147.19,47.8039289]
[1740769309799,1.75946157,147.26,147.19,47.8039289]
[1740769310305,3.75946157,147.26,147.19,47.8039289]
[1740769311619,0.14216157,147.24,147.19,47.8039289]
[1740769312337,2.14216157,147.22,147.14,185.7839289]
[1740769312623,6.061,147.23,147.14,47.8039289]
[1740769312624,1.5627,147.19,147.14,47.8039289]
[1740769313303,1.5627,147.19,147.13,0.063]
[1740769314012,2.14216157,147.18,147.13,0.063]
[1740769314804,0.14216157,147.16,147.13,0.063]
[1740769315015,0.14216157,147.17,147.13,0.063]
[1740769315220,1.5627,147.19,147.13,0.063]
[1740769316024,1.5627,147.19,147.13,185.8469289]
[1740769318019,1.5885,147.22,147.13,192.6435289]
[1740769318416,1.5885,147.22,147.15,0.14216157]
[1740769318605,1.5329,147.27,147.16,8.52628214]
[1740769318805,1.5329,147.27,147.17,6.7948]
[1740769318999,3.5329,147.27,147.17,192.5787289]
[1740769319227,1.5329,147.27,147.18,312.0]
[1740769319521,2.0,147.25,147.18,497.7839289]
[1740769319729,2.0,147.25,147.18,47.8039289]
[1740769319932,2.14216157,147.24,147.18,47.8039289]
[1740769320122,4.95866244,147.27,147.16,13.8951]
[1740769320338,2.0,147.25,147.16,13.8951]
[1740769320528,2.14216157,147.26,147.16,13.8951]
[1740769321210,0.14216157,147.26,147.16,13.8951]
[1740769321610,1.5329,147.27,147.17,0.14216157]
[1740769321819,1.5329,147.27,147.19,0.14216157]
[1740769322020,1.5329,147.27,147.17,209.5654289]
[1740769322221,2.0,147.26,147.17,192.5783289]
[1740769322406,2.0,147.25,147.17,192.5787289]
[1740769322608,1.5329,147.27,147.17,192.5787289]
[1740769322815,3.5329,147.27,147.19,312.0]
[1740769323331,1.5329,147.27,147.19,497.7839289]
[1740769323827,3.5329,147.27,147.19,504.5776289]
[1740769324218,2.14216157,147.26,147.19,497.7839289]
[1740769324427,2.0,147.25,147.19,185.7839289]
[1740769325108,2.0,147.25,147.19,192.5777289]
[1740769325415,2.14216157,147.26,147.19,192.5777289]
[1740769325913,1.5329,147.27,147.19,192.5777289]
[1740769327333,1.5329,147.27,147.19,209.5625289]
[1740769327634,1.5329,147.27,147.21,312.0]
[1740769327812,1.5329,147.27,147.21,359.8039289]
[1740769328209,2.0,147.24,147.19,185.7839289]
[1740769328419,2.0,147.24,147.19,47.8039289]
[1740769328935,2.14216157,147.23,147.16,192.5791289]
[1740769329111,2.0,147.22,147.16,47.8039289]
[1740769329507,1.6162,147.2,147.16,47.8039289]
[1740769329708,1.6162,147.2,147.19,0.063]
[1740769330450,3.75836157,147.2,147.19,0.063]
[1740769332528,2.0,147.17,147.13,0.063]
[1740769333538,0.14216157,147.17,147.13,0.063]
[1740769334229,2.14216157,147.15,147.13,0.063]
[1740769334423,2.0,147.14,147.13,0.063]
[1740769334625,10.0974,147.14,147.13,0.063]
[1740769334829,0.14216157,147.11,147.04,47.8039289]
[1740769335145,0.14216157,147.11,147.04,54.6046289]
[1740769335629,0.14216157,147.11,147.04,366.6046289]
[1740769336243,0.14216157,147.11,147.04,359.8039289]
[1740769336444,2.14216157,147.11,147.04,366.6046289]
[1740769336824,2.0,147.13,147.04,54.6047289]
[1740769337028,2.14216157,147.12,147.04,192.5847289]
[1740769337230,0.14216157,147.1,147.04,185.7839289]
[1740769337441,0.14216157,147.1,147.03,0.063]
[1740769337442,1.5936,147.06,147.03,0.063]
[1740769338147,2.14216157,147.05,147.03,0.063]
[1740769338443,2.0,147.04,147.03,0.063]
[1740769338621,2.0,147.02,147.0,0.03]
[1740769338827,0.14216157,147.01,147.0,0.03]
[1740769339230,1.42576244,147.03,147.0,0.03]
[1740769339531,7.1,147.04,147.0,0.03]
[1740769339957,0.14216157,147.04,147.0,0.03]
[1740769340156,7.6209,147.06,147.0,0.03]
[1740769340363,7.6209,147.06,147.0,47.8339289]
[1740769341056,1.5936,147.06,147.0,47.8339289]
[1740769341732,80.7,147.09,147.0,185.8139289]
[1740769342062,1.6371,147.1,147.01,1.57000497]
[1740769342268,1.6371,147.1,147.03,6.8013]
[1740769342567,0.063,147.13,147.03,192.5852289]
[1740769343062,0.063,147.13,147.04,1.5697135]
[1740769343363,0.063,147.13,147.04,187.3536424]
[1740769343544,0.063,147.13,147.04,187.92609047]
[1740769343751,0.063,147.13,147.04,185.7839289]
[1740769344430,0.063,147.13,147.05,6.8004]
[1740769344657,0.063,147.13,147.06,312.0]
[1740769344967,0.063,147.13,147.06,497.7839289]
[1740769346161,0.063,147.13,147.06,504.5837289]
[1740769346333,0.063,147.13,147.06,192.5837289]
[1740769347357,0.20516157,147.13,147.06,185.7839289]
[1740769348055,0.063,147.13,147.06,192.5837289]
[1740769349156,0.063,147.13,147.06,209.5835289]
[1740769349454,0.063,147.13,147.08,312.0]
[1740769349648,0.063,147.13,147.09,7.1]
[1740769349843,0.063,147.13,147.09,192.8839289]
[1740769350259,0.063,147.13,147.09,54.9039289]
[1740769350466,0.14216157,147.12,147.09,47.8039289]
[1740769351234,0.063,147.13,147.09,47.8039289]
[1740769352260,0.063,147.13,147.09,192.5822289]
[1740769352766,0.063,147.13,147.09,504.5822289]
[1740769353075,0.063,147.13,147.09,312.0]
[1740769353286,0.063,147.13,147.08,6.7989]
[1740769353443,0.063,147.13,147.06,6.7999]
[1740769353643,0.063,147.13,147.06,54.6038289]
[1740769354044,0.063,147.13,147.06,47.8039289]
[1740769354262,0.14216157,147.12,147.06,47.8039289]
[1740769354682,2.14216157,147.12,147.06,47.8039289]
[1740769355173,0.14216157,147.1,147.05,7.1]
[1740769355383,0.14216157,147.08,147.03,47.8039289]
[1740769355880,0.14216157,147.08,147.01,54.9039289]
[1740769355881,2.14216157,147.08,147.01,54.9039289]
[1740769356285,2.14216157,147.08,147.01,366.9039289]
[1740769357573,80.7,147.09,147.01,366.9039289]
[1740769357778,1.5714,147.11,147.01,511.6861289]
[1740769357957,1.5714,147.11,147.01,199.6861289]
[1740769358159,80.7,147.12,147.01,199.6861289]
[1740769358354,80.7,147.12,147.02,0.14216157]
[1740769358764,80.7,147.12,147.01,199.6861289]
[1740769358968,0.14216157,147.11,147.01,199.6861289]
[1740769359179,80.7,147.12,147.01,199.6861289]
[1740769359370,80.7,147.12,147.02,0.14216157]
[1740769359788,0.14216157,147.11,147.01,199.6861289]
[1740769359973,3.56792401,147.11,147.01,192.8839289]
[1740769360297,86.26792401,147.11,147.01,54.9039289]
[1740769360465,2.14216157,147.09,147.01,54.9039289]
[1740769360664,3.56792401,147.09,147.01,54.9039289]
[1740769360898,0.14216157,147.08,147.01,366.9039289]
[1740769362892,0.14216157,147.1,147.01,373.7060289]
[1740769363070,0.14216157,147.1,147.01,199.6860289]
[1740769363400,82.7,147.12,147.01,199.6860289]
[1740769363602,3.42576244,147.11,147.01,199.6860289]
[1740769363784,0.14216157,147.1,147.01,199.6860289]
[1740769364101,80.7,147.12,147.01,199.6860289]
[1740769364475,0.14216157,147.11,147.01,199.6860289]
[1740769365913,0.14216157,147.11,147.01,216.6916289]
[1740769366198,0.14216157,147.11,147.03,312.0]
[1740769366698,2.0,147.1,147.03,312.0]
[1740769366904,0.14216157,147.08,147.01,54.9039289]
[1740769367411,0.14216157,147.08,147.01,61.7060289]
[1740769368085,1.5335,147.09,147.01,54.9039289]
[1740769368300,1.5335,147.09,147.01,61.7058289]
[1740769369507,1.6134,147.13,147.02,0.14216157]
[1740769369801,1.6134,147.13,147.07,312.0]
[1740769370001,0.063,147.13,147.07,504.8839289]
[1740769370407,0.063,147.13,147.07,192.8839289]
[1740769371274,0.063,147.13,147.08,23.7965]
[1740769371474,0.063,147.13,147.11,20.0]
[1740769371699,0.063,147.13,147.11,205.7839289]
[1740769371980,0.063,147.13,147.12,1.42681886]
[1740769372189,0.063,147.13,147.11,205.7839289]
[1740769372777,0.063,147.13,147.12,6.7971]
[1740769373374,0.063,147.13,147.12,318.7971]
[1740769374092,1.5201,147.22,147.13,0.14216157]
[1740769374291,84.2689,147.26,147.14,7.1]
[1740769374493,1.5689,147.26,147.15,0.14216157]
[1740769374870,1.5689,147.26,147.15,185.92609047]
[1740769375711,0.14216157,147.25,147.16,6.7953]
[1740769377208,0.14216157,147.25,147.18,312.0]
[1740769377404,2.14216157,147.25,147.18,359.8039289]
[1740769377571,2.0,147.24,147.18,47.8039289]
[1740769378578,5.56792401,147.25,147.18,47.8039289]
[1740769378785,2.0,147.24,147.18,47.8039289]
[1740769380096,84.2689,147.26,147.18,47.8039289]
[1740769380270,82.2689,147.26,147.18,47.8039289]
[1740769380588,1.5689,147.26,147.18,366.5982289]
[1740769380794,1.5689,147.26,147.18,359.8039289]
[1740769380982,1.5689,147.26,147.18,366.5982289]
[1740769381178,0.14216157,147.25,147.18,359.8039289]
[1740769381380,0.14216157,147.25,147.18,47.8039289]
[1740769381592,1.5689,147.26,147.18,54.5982289]
[1740769382795,1.5689,147.26,147.18,47.8039289]
[1740769383994,1.5689,147.26,147.18,54.5982289]
[1740769384378,1.5689,147.26,147.18,366.5982289]
[1740769384580,0.14216157,147.25,147.18,359.8039289]
[1740769384777,0.14216157,147.25,147.16,47.8039289]
[1740769384983,2.14216157,147.25,147.16,54.5991289]
[1740769385177,0.14216157,147.25,147.16,54.5991289]
[1740769385379,2.14216157,147.25,147.16,47.8039289]
[1740769385591,82.84216157,147.25,147.16,47.8039289]
[1740769386279,2.0,147.22,147.14,47.8039289]
[1740769386495,82.84216157,147.21,147.12,185.7839289]
[1740769386680,82.84216157,147.21,147.12,47.8039289]
[1740769386681,2.14216157,147.19,147.12,47.8039289]
[1740769386877,0.14216157,147.19,147.12,47.8039289]
[1740769387589,6.71976157,147.19,147.12,47.8039289]
[1740769388176,10.71976157,147.19,147.12,47.8039289]
[1740769388382,5.08496244,147.18,147.09,359.8039289]
[1740769388578,0.14216157,147.17,147.09,359.8039289]
[1740769388801,1.6592,147.18,147.09,54.6023289]
[1740769389187,1.6645,147.22,147.09,192.5823289]
[1740769389397,1.6645,147.22,147.09,209.5786289]
[1740769389698,0.14216157,147.21,147.09,192.5823289]
[1740769390204,0.14216157,147.21,147.09,209.5786289]
[1740769390406,1.6645,147.22,147.11,6.7976]
[1740769390603,1.6645,147.22,147.11,23.7916]
[1740769391400,0.14216157,147.21,147.11,23.7916]
[1740769391602,0.14216157,147.21,147.11,318.7976]
[1740769391787,1.6645,147.22,147.11,318.7976]
[1740769392102,0.14216157,147.21,147.11,6.7976]
[1740769392495,0.14216157,147.21,147.1,6.798]
[1740769392900,2.14216157,147.21,147.1,6.798]
[1740769393100,0.14216157,147.19,147.1,199.6619289]
[1740769393324,0.14216157,147.19,147.1,61.6819289]
[1740769393843,5.56792401,147.19,147.1,54.8839289]
[1740769394011,0.14216157,147.17,147.1,54.8839289]
[1740769394686,0.14216157,147.17,147.1,47.8039289]
[1740769395096,86.26792401,147.17,147.08,192.5828289]
[1740769395489,84.26792401,147.17,147.08,192.5828289]
[1740769395813,80.84216157,147.17,147.08,192.5828289]
[1740769395980,80.84216157,147.17,147.08,209.5803289]
[1740769396601,8.7445,147.22,147.08,209.5803289]
[1740769396602,82.3645,147.22,147.11,20.0]
[1740769396782,82.3645,147.22,147.11,205.7839289]
[1740769397206,2.0,147.21,147.11,205.7839289]
[1740769397426,2.14216157,147.2,147.11,47.8039289]
[1740769398003,4.14216157,147.2,147.11,47.8039289]
[1740769398211,4.14216157,147.18,147.11,47.8039289]
[1740769398401,0.14216157,147.16,147.08,185.7839289]
[1740769398604,1.78226157,147.14,147.04,192.1583289]
[1740769398805,1.78226157,147.14,147.04,199.6647289]
[1740769399036,5.78226157,147.14,147.04,192.8639289]
[1740769399205,5.78226157,147.14,147.04,504.8639289]
[1740769399523,5.78226157,147.14,147.04,504.5846289]
[1740769399818,3.78226157,147.14,147.04,504.5846289]
[1740769400012,1.78226157,147.14,147.04,504.5846289]
[1740769400838,1.78226157,147.14,147.11,0.03]
[1740769401507,4.14216157,147.12,147.11,0.03]
[1740769401708,0.14216157,147.12,147.11,0.03]
[1740769402324,1.6401,147.14,147.11,0.03]
[1740769402817,0.14216157,147.13,147.11,0.03]
[1740769403201,1.6401,147.14,147.11,0.03]
[1740769403911,0.14216157,147.13,147.11,0.03]
[1740769404312,80.84216157,147.13,147.11,0.03]
[1740769404902,82.84216157,147.13,147.11,0.03]
[1740769405321,88.4171202,147.13,147.11,0.03]
[1740769405528,86.4171202,147.13,147.11,0.03]
[1740769405723,80.84216157,147.13,147.11,0.03]
[1740769407829,0.14216157,147.13,147.11,0.03]
[1740769408036,1.6401,147.14,147.11,0.03]
[1740769409034,0.14216157,147.13,147.11,0.03]
[1740769409211,80.84216157,147.13,147.11,0.03]
[1740769410634,80.84216157,147.12,147.11,0.03]
[1740769411145,80.84216157,147.12,147.04,47.8039289]
[1740769411432,0.14216157,147.1,147.01,54.9039289]
[1740769411634,80.84216157,147.1,147.01,54.9039289]
[1740769411846,80.84216157,147.1,147.01,61.7060289]
[1740769412426,80.84216157,147.1,147.01,373.7060289]
[1740769413147,82.3401,147.14,147.02,0.14216157]
[1740769413315,0.14216157,147.13,147.02,185.92609047]
[1740769413515,80.7,147.14,147.05,20.0]
[1740769413715,2.0,147.19,147.05,205.7839289]
[1740769413716,82.2232,147.18,147.05,205.7839289]
[1740769414010,82.7,147.17,147.05,67.8039289]
[1740769414219,0.14216157,147.15,147.05,47.8039289]
[1740769414450,80.7,147.14,147.05,47.8039289]
[1740769414616,5.82647255,147.17,147.07,6.2601]
[1740769414617,80.7,147.17,147.07,6.2601]
[1740769414815,1.5232,147.18,147.08,8.6922]
[1740769415122,1.5232,147.18,147.08,194.4761289]
[1740769415421,0.14216157,147.17,147.08,194.4761289]
[1740769416030,1.5232,147.18,147.1,312.0]
[1740769416235,86.7501,147.19,147.1,312.0]
[1740769416236,80.7,147.19,147.1,312.0]
[1740769416612,80.7,147.19,147.09,6.7984]
[1740769417721,80.7,147.19,147.09,23.7947]
[1740769417925,0.14216157,147.2,147.09,211.00570479]
[1740769418127,1.5895,147.22,147.12,20.0]
[1740769418322,0.063,147.22,147.13,6.61316157]
[1740769418529,0.063,147.22,147.14,7.1]
[1740769419617,0.063,147.22,147.14,319.1]
[1740769420635,0.14216157,147.2,147.14,7.1]
[1740769421319,80.7,147.21,147.14,7.1]
[1740769421715,0.20516157,147.22,147.14,192.8839289]
[1740769421716,0.063,147.22,147.14,192.8839289]
[1740769422645,0.063,147.22,147.14,199.6801289]
[1740769423422,0.063,147.22,147.17,20.0]
[1740769423622,0.063,147.22,147.19,312.0]
[1740769423830,0.063,147.22,147.21,6.4813]
[1740769424030,0.063,147.22,147.21,54.2852289]
[1740769426940,0.063,147.22,147.21,47.8039289]
[1740769427822,0.063,147.22,147.18,7.08]
[1740769428022,0.063,147.22,147.18,54.8839289]
[1740769430050,0.063,147.22,147.18,47.8039289]
[1740769432848,0.063,147.22,147.18,497.8039289]
[1740769433055,0.063,147.22,147.18,504.5982289]
[1740769433426,0.063,147.22,147.19,1.42600353]
[1740769433749,0.063,147.22,147.2,7.08]
[1740769433963,0.063,147.22,147.2,13.8734]
[1740769434861,0.063,147.22,147.2,7.08]
[1740769435968,0.063,147.22,147.2,54.8839289]
[1740769437056,0.14216157,147.21,147.13,54.0700289]
[1740769437559,84.26792401,147.21,147.13,47.8039289]
[1740769437758,82.26792401,147.21,147.13,47.8039289]
[1740769438655,0.14216157,147.19,147.09,47.8039289]
[1740769438849,0.14216157,147.17,147.11,0.03]
[1740769439044,0.14216157,147.15,147.11,0.03]
[1740769439245,80.7,147.16,147.11,0.03]
[1740769440073,80.7,147.16,147.11,312.03]
[1740769441143,80.7,147.21,147.11,359.8339289]
[1740769441347,80.7,147.21,147.11,47.8339289]
[1740769442173,0.063,147.22,147.14,20.0]
[1740769442368,0.063,147.22,147.15,13.37]
[1740769442567,0.063,147.22,147.16,1.56841559]
[1740769442776,0.063,147.22,147.16,187.37234449]
[1740769442949,0.063,147.22,147.16,185.94609047]
[1740769443160,0.063,147.22,147.19,20.0]
[1740769443460,0.063,147.22,147.2,0.14216157]
[1740769443663,0.063,147.22,147.21,8.64791457]
[1740769443852,0.063,147.25,147.21,8.64791457]
[1740769443853,0.063,147.25,147.22,0.14216157]
[1740769444053,0.063,147.25,147.24,26.93376157]
[1740769444248,0.063,147.25,147.24,528.73769047]
[1740769444451,0.063,147.26,147.25,2.14216157]
[1740769444663,0.063,147.26,147.25,191.3712099]
[1740769444864,0.063,147.26,147.25,189.94609047]
[1740769445263,0.063,147.26,147.25,196.73719047]
[1740769445574,0.063,147.26,147.25,194.73719047]
[1740769445766,0.063,147.26,147.25,192.73719047]
[1740769446078,0.063,147.26,147.25,196.73719047]
[1740769446975,0.063,147.26,147.25,192.73719047]
[1740769447775,0.063,147.26,147.25,504.73719047]
[1740769448558,0.063,147.26,147.25,497.8039289]
[1740769448760,0.063,147.26,147.25,497.94609047]
[1740769449154,0.063,147.26,147.25,504.8839289]
[1740769449585,0.063,147.26,147.25,54.8839289]
[1740769450496,0.063,147.26,147.21,47.8039289]
[1740769451659,0.063,147.26,147.2,7.08]
[1740769451865,1.48876244,147.26,147.17,47.8039289]
[1740769452079,0.14216157,147.24,147.17,47.8039289]
[1740769452287,1.56792401,147.24,147.13,7.08]
[1740769452461,80.7,147.23,147.13,366.8839289]
[1740769452781,82.18876244,147.26,147.13,366.8839289]
[1740769452989,0.14216157,147.25,147.13,366.8839289]
[1740769453182,0.14216157,147.23,147.13,366.8839289]
[1740769454096,0.063,147.26,147.14,1.56900211]
[1740769454292,0.063,147.26,147.18,0.14216157]
[1740769454499,0.063,147.26,147.19,7.08]
[1740769454872,0.063,147.26,147.2,0.14216157]
[1740769455081,0.063,147.26,147.2,1.56838953]
[1740769455274,0.063,147.26,147.2,0.14216157]
[1740769455678,0.063,147.26,147.2,1.56809063]
[1740769456089,0.063,147.26,147.2,0.14216157]
[1740769456597,0.063,147.26,147.2,8.36146367]
[1740769456803,0.063,147.26,147.2,194.16539257]
[1740769456974,0.063,147.26,147.24,312.0]
[1740769457183,0.063,147.26,147.25,8.64768602]
[1740769457492,0.063,147.26,147.25,7.08]
[1740769457679,0.063,147.26,147.25,54.8839289]
[1740769458088,0.063,147.26,147.25,7.08]
[1740769458290,0.063,147.26,147.2,185.8039289]
[1740769458473,0.063,147.26,147.2,192.8839289]
[1740769459412,0.063,147.26,147.21,1.56810232]
[1740769460208,0.063,147.26,147.22,0.14216157]
[1740769460701,0.063,147.26,147.24,312.0]
[1740769460879,0.063,147.26,147.22,47.8039289]
[1740769462802,0.063,147.26,147.22,47.8669289]
[1740769463788,1.7176,147.26,147.22,0.063]
[1740769467518,82.26792401,147.25,147.17,7.08]
[1740769467716,82.26792401,147.25,147.16,47.8039289]
[1740769468185,91.34792401,147.25,147.14,47.8039289]
[1740769468406,0.14216157,147.23,147.14,47.8039289]
[1740769469023,0.14216157,147.21,147.14,47.8039289]
[1740769469345,1.75656157,147.18,147.12,47.8039289]
[1740769469489,1.6144,147.18,147.12,47.8039289]
[1740769471120,0.14216157,147.17,147.11,0.03]
[1740769472328,80.84216157,147.17,147.11,0.03]
[1740769473152,80.7,147.17,147.11,0.03]
[1740769473315,1.6144,147.18,147.11,47.8339289]
[1740769473811,0.14216157,147.17,147.11,47.8339289]
[1740769475120,1.6144,147.18,147.11,47.8339289]
[1740769475510,0.14216157,147.17,147.11,47.8339289]
[1740769475705,0.14216157,147.15,147.11,0.03]
[1740769476526,1.56792401,147.15,147.11,0.03]
[1740769476919,3.56792401,147.15,147.11,0.03]
[1740769477412,0.14216157,147.13,147.11,0.03]
[1740769477716,0.14216157,147.13,147.11,0.0001]
[1740769478099,6.2116,147.12,147.11,0.0001]
[1740769478404,86.9116,147.12,147.11,0.0001]
[1740769479006,86.9116,147.12,147.07,0.063]
[1740769479007,0.14216157,147.1,147.07,0.063]
[1740769479385,0.14216157,147.1,147.07,0.0001]
[1740769479386,80.7,147.09,147.07,0.0001]
[1740769479614,80.84216157,147.08,147.07,0.0001]
[1740769480601,2.0,147.07,147.0,0.03]
[1740769480813,82.26792401,147.06,147.0,0.03]
[1740769481000,0.14216157,147.04,147.0,0.03]
[1740769481307,1.80266157,147.02,147.0,0.03]
[1740769481495,83.92842401,147.02,147.0,0.0001]
[1740769482709,82.50266157,147.02,147.0,0.0001]
[1740769482899,80.7,147.02,147.0,0.0001]
[1740769483817,8.1281,147.05,147.0,0.0001]
[1740769485411,80.7,147.08,147.0,47.8040289]
[1740769486413,80.7,147.08,147.0,359.8040289]
[1740769486917,0.14216157,147.07,147.0,359.8040289]
[1740769487117,0.14216157,147.05,147.0,0.0001]
[1740769487701,1.56792401,147.05,147.0,0.0001]
[1740769487896,3.56792401,147.05,147.0,0.0001]
[1740769488512,0.14216157,147.03,147.0,0.0001]
[1740769488802,0.14216157,146.99,146.98,0.0001]
[1740769489021,3.56792401,146.99,146.98,0.0001]
[1740769489216,3.56792401,146.99,146.94,0.03]
[1740769489217,0.14216157,146.97,146.94,0.03]
[1740769489410,82.7,146.98,146.94,0.0001]
[1740769489411,0.14216157,146.95,146.94,0.0001]
[1740769489805,2.14216157,146.95,146.94,0.0001]
[1740769490007,0.14216157,146.95,146.94,0.0001]
[1740769490604,0.14216157,146.97,146.94,0.0001]
[1740769492320,80.7,146.98,146.94,0.0001]
[1740769492517,1.5578,147.0,146.94,0.0001]
[1740769492724,80.7,147.03,146.94,0.0001]
[1740769493106,80.7,147.03,146.94,47.8040289]
[1740769493421,80.7,147.03,146.95,7.08]
[1740769494133,128.147262,147.04,146.95,7.08]
[1740769494134,122.3104,147.04,146.95,7.08]
[1740769494810,0.14216157,147.03,146.95,7.08]
[1740769495527,0.14216157,147.01,146.94,0.0001]
[1740769495909,0.14216157,146.99,146.94,0.0001]
[1740769496625,0.14216157,146.97,146.94,0.0001]
[1740769496826,0.14216157,146.95,146.94,0.0001]
[1740769498038,1.42576244,146.96,146.94,0.0001]
[1740769498328,80.7,146.97,146.94,0.0001]
[1740769498626,0.14216157,146.96,146.94,0.0001]
[1740769498824,80.84216157,146.96,146.94,0.0001]